bitfinex/quotes_ETHUSD_20260302
["timestamp","ask_amount","ask_price","bid_price","bid_amount"]
[1772418202146,0.00153886,1948.0,1947.2,0.80969804]
[1772418202344,0.00153886,1948.0,1947.3,1.28382889]
[1772418202543,0.00153886,1948.0,1947.4,2.91899515]
[1772418203847,0.00153886,1948.0,1947.5,0.80969804]
[1772418204232,0.001,1948.1,1947.7,2.09326327]
[1772418204440,0.001,1948.1,1947.8,0.80969804]
[1772418204840,0.001,1948.1,1947.3,1.283789]
[1772418205037,0.001,1948.1,1947.3,2.09348704]
[1772418205338,0.001,1948.1,1947.3,0.80969804]
[1772418206443,0.001,1948.1,1947.3,2.09349105]
[1772418206444,0.001,1947.9,1947.3,2.09349105]
[1772418206630,4.46340069,1947.0,1946.9,2.17483311]
[1772418206833,0.001,1947.9,1947.0,0.80969804]
[1772418207065,0.001,1947.9,1947.2,0.80969804]
[1772418207737,0.001,1947.9,1947.4,0.80969804]
[1772418208044,0.001,1947.9,1947.5,0.80969804]
[1772418208243,0.001,1947.9,1947.5,2.10929711]
[1772418208433,0.001,1947.9,1947.7,2.09326327]
[1772418208636,0.001,1948.1,1947.8,0.80969804]
[1772418209162,0.001,1948.2,1947.9,1.325]
[1772418209359,2.0558696,1948.7,1947.9,1.325]
[1772418209559,5.1311269,1948.9,1947.9,2.13469804]
[1772418210364,0.77293376,1948.8,1947.9,2.13469804]
[1772418210539,0.77293376,1948.8,1948.0,1.28336755]
[1772418210540,1.28290655,1948.7,1948.0,1.28336755]
[1772418211168,1.28281182,1948.9,1948.0,2.09306559]
[1772418211545,1.28426558,1949.0,1948.1,2.91899515]
[1772418212379,0.25239224,1950.3,1948.0,1.28336755]
[1772418212380,1.2824141,1949.5,1948.5,2.91899515]
[1772418212544,1.2824141,1949.5,1948.8,1.28284072]
[1772418212948,0.77293376,1949.3,1948.1,5.13317632]
[1772418213163,0.77293376,1949.3,1948.2,0.87523404]
[1772418213164,0.77293376,1949.2,1948.2,0.87523404]
[1772418213556,0.77293376,1949.2,1948.3,2.10929711]
[1772418213759,3.36534786,1949.5,1948.4,0.80969804]
[1772418214272,0.77293376,1949.5,1948.6,0.80969804]
[1772418214582,3.93794903,1949.7,1948.7,4.2019017]
[1772418214750,1.28229446,1949.7,1948.9,2.91899515]
[1772418215070,1.28229446,1949.7,1948.9,0.80969804]
[1772418215643,1.28229446,1949.7,1948.7,1.28290655]
[1772418215644,0.77293376,1949.6,1948.7,1.28290655]
[1772418215849,0.77293376,1949.6,1948.7,2.09260459]
[1772418216078,1.28223415,1949.8,1948.8,0.80969804]
[1772418217078,1.28223415,1949.8,1948.9,1.28277489]
[1772418217459,1.28223415,1949.8,1948.9,2.60777489]
[1772418217656,1.28223415,1949.8,1948.9,3.41747293]
[1772418217856,0.00153886,1950.0,1949.1,0.80969804]
[1772418218084,0.00153886,1950.0,1948.9,2.60777489]
[1772418218085,0.00153886,1950.0,1949.4,2.10929711]
[1772418218296,0.77293376,1950.6,1949.6,2.10929711]
[1772418218581,0.77293376,1950.6,1949.6,2.13369804]
[1772418219548,1.28172263,1950.5,1949.7,1.28224855]
[1772418219775,0.77293376,1950.4,1949.6,2.60630222]
[1772418220090,0.77293376,1950.4,1949.6,2.60631185]
[1772418220286,1.28172263,1950.5,1949.6,2.60631185]
[1772418220650,1.28172263,1950.5,1949.6,3.41600989]
[1772418220846,1.28172263,1950.5,1949.7,0.80969804]
[1772418221550,5.12689054,1950.6,1949.8,1.28218278]
[1772418221750,1.28165692,1950.6,1949.8,1.28218278]
[1772418221983,0.1173052,1950.7,1950.0,0.80969804]
[1772418222151,0.00153886,1951.0,1950.2,0.80969804]
[1772418222548,1.28293452,1951.0,1950.1,3.89472592]
[1772418222972,0.00153886,1951.0,1950.2,0.80969804]
[1772418223377,0.00153886,1951.0,1950.3,0.80969804]
[1772418223681,0.00153886,1951.0,1950.4,1.28178835]
[1772418224054,0.00153886,1951.0,1950.4,2.09148639]
[1772418224469,0.00153886,1951.0,1950.4,1.28178835]
[1772418224788,0.77447262,1951.0,1950.2,1.2819198]
[1772418225084,2.88376973,1951.0,1950.2,1.2819198]
[1772418225589,0.00153886,1951.0,1950.3,0.80969804]
[1772418225770,0.00153886,1951.0,1950.3,1.28180565]
[1772418225970,92.57659788,1950.5,1950.3,1.28180565]
[1772418226283,26.72649453,1950.5,1950.1,2.60493689]
[1772418226686,26.72649453,1950.5,1950.1,1.323]
[1772418227697,1.28178835,1950.4,1949.7,1.322]
[1772418227859,1.28178835,1950.4,1949.7,2.60424147]
[1772418228059,1.28178835,1950.4,1949.7,1.322]
[1772418228364,3.8886887,1950.4,1949.7,1.322]
[1772418228592,3.8886887,1950.4,1949.5,3.85409571]
[1772418228593,5.99798581,1950.4,1949.5,3.85409571]
[1772418228753,5.2046887,1950.4,1949.5,2.57172592]
[1772418228959,5.2046887,1950.4,1949.5,3.85410318]
[1772418229684,5.2046887,1950.4,1949.5,3.85409575]
[1772418230087,5.2046887,1950.4,1949.5,2.57172592]
[1772418230687,5.2056887,1950.4,1949.5,2.57172592]
[1772418230990,2.60690035,1950.0,1949.3,1.322]
[1772418231359,3.92390035,1950.0,1949.0,0.00153886]
[1772418231865,3.88901738,1949.9,1949.0,0.00153886]
[1772418232169,2.60690035,1949.8,1949.0,0.00153886]
[1772418232373,2.60690035,1949.7,1949.0,0.00153886]
[1772418232680,1.28210294,1950.0,1949.0,2.6976667]
[1772418232883,2.60690035,1950.1,1949.2,2.69612784]
[1772418232884,2.59900027,1950.1,1949.2,2.69612784]
[1772418233907,3.8888725,1950.2,1949.3,1.28251167]
[1772418234280,3.8888725,1950.2,1949.2,3.97866197]
[1772418235407,2.60690035,1950.0,1949.1,1.28260413]
[1772418235706,1.28187594,1950.3,1949.5,2.69612784]
[1772418235914,1.28283297,1950.4,1949.6,1.28231432]
[1772418236108,1.28283297,1950.4,1949.5,3.97850054]
[1772418236514,2.60383297,1950.4,1949.5,3.97850054]
[1772418236715,1.28283297,1950.4,1949.5,3.97850054]
[1772418237784,0.001,1950.4,1949.6,2.69612784]
[1772418238114,0.001,1950.4,1949.7,1.28224855]
[1772418238307,0.001,1950.4,1949.7,3.97837639]
[1772418238514,0.001,1950.4,1949.8,2.69612784]
[1772418239615,0.001,1950.4,1949.6,1.28227051]
[1772418239616,2.60790035,1950.4,1949.6,1.28227051]
[1772418240299,3.88875442,1950.3,1949.4,1.321]
[1772418240502,3.88875442,1950.3,1949.4,2.60344204]
[1772418240703,1.28283255,1950.4,1949.5,2.69612784]
[1772418240899,0.001,1950.4,1949.8,4.80542495]
[1772418242012,0.001,1950.4,1949.5,2.69612784]
[1772418242013,5.21769215,1950.4,1949.5,2.69612784]
[1772418242216,5.21869215,1950.4,1949.6,0.0011]
[1772418242403,1.2819198,1950.2,1949.6,0.0011]
[1772418243017,3.88882015,1950.2,1949.6,0.0011]
[1772418243411,1.2819198,1950.2,1949.6,0.0011]
[1772418243620,5.12767921,1950.3,1949.6,0.0011]
[1772418243621,0.001,1950.4,1949.7,2.69612784]
[1772418244091,1.28278992,1950.4,1949.7,2.69612784]
[1772418244289,1.28278992,1950.4,1949.8,1.28218278]
[1772418245390,1.28278992,1950.4,1949.8,3.97831062]
[1772418245391,0.001,1950.4,1949.8,3.97831062]
[1772418246503,0.001,1950.4,1949.8,5.29931062]
[1772418247822,0.001,1950.4,1949.9,2.69612784]
[1772418248510,0.001,1950.4,1950.0,1.28205128]
[1772418249437,0.001,1950.4,1949.9,3.97819386]
[1772418250631,0.001,1950.4,1950.0,2.69612784]
[1772418251816,26.72649453,1950.5,1950.0,2.69612784]
[1772418252611,26.72649453,1950.5,1950.2,2.62613256]
[1772418252811,26.72649453,1950.5,1950.3,3.95313256]
[1772418253199,0.00153886,1951.0,1950.4,2.62613256]
[1772418253628,1.28293766,1951.0,1950.4,2.62613256]
[1772418253803,2.45793436,1950.9,1950.1,0.065536]
[1772418254318,3.81993436,1950.9,1950.0,5.23613294]
[1772418254513,2.45793436,1950.8,1950.0,5.23613294]
[1772418254717,1.28159122,1950.7,1950.1,2.62613256]
[1772418254919,1.28159122,1950.7,1950.0,2.61000038]
[1772418254920,0.001,1950.4,1950.0,2.61000038]
[1772418255114,0.001,1950.4,1950.1,2.62613256]
[1772418255430,5.12596469,1950.9,1950.1,2.62613256]
[1772418255431,1.28149157,1950.9,1950.1,2.62613256]
[1772418256726,5.12724851,1951.0,1950.2,1.2819198]
[1772418256898,7.58518287,1951.0,1950.2,1.2819198]
[1772418257301,2.8236786,1950.9,1950.0,1.328]
[1772418257530,2.8236786,1950.8,1950.0,2.61002381]
[1772418257914,1.28293301,1951.0,1950.3,2.90728955]
[1772418258801,1.28293301,1951.0,1950.4,1.328]
[1772418259532,0.00153886,1951.0,1950.4,2.60972607]
[1772418259729,2.82521746,1951.0,1950.4,2.60977604]
[1772418260235,0.00153886,1951.0,1950.4,2.60977604]
[1772418260418,0.00153886,1951.0,1950.4,5.51706559]
[1772418264125,1.28293301,1951.0,1950.4,5.51706559]
[1772418264655,2.82521746,1951.0,1950.4,2.60978595]
[1772418265657,2.82521746,1951.0,1950.4,1.328]
[1772418265818,2.82521746,1951.0,1950.4,2.60978665]
[1772418266638,1.28145983,1950.9,1950.4,2.60978665]
[1772418266849,4.10666388,1951.0,1950.4,2.60978665]
[1772418267346,0.001,1950.9,1950.4,2.60978665]
[1772418270346,2.8246786,1950.9,1950.4,2.60978665]
[1772418270915,1.28248749,1950.9,1950.4,2.60978665]
[1772418271544,0.001,1950.9,1950.4,5.5170762]
[1772418272144,2.8246786,1950.9,1950.4,1.28178665]
[1772418272316,2.8236786,1950.8,1950.2,0.0011]
[1772418273054,2.8236786,1950.8,1950.0,0.0011]
[1772418273055,2.8236786,1950.6,1950.0,0.0011]
[1772418273946,2.8236786,1950.5,1950.0,0.0011]
[1772418274122,2.8236786,1950.3,1949.8,0.0011]
[1772418275247,2.8236786,1949.8,1949.5,0.0011]
[1772418275820,2.8236786,1949.8,1949.3,0.0011]
[1772418276946,2.8236786,1949.8,1949.0,0.00153886]
[1772418276947,2.8236786,1949.7,1949.0,0.00153886]
[1772418277152,2.8236786,1949.5,1949.0,0.00153886]
[1772418277316,2.8236786,1949.3,1949.0,0.00373886]
[1772418279550,4.10625606,1949.2,1949.0,0.00373886]
[1772418279955,2.8236786,1949.6,1949.0,0.00153886]
[1772418280261,1.28222535,1949.8,1949.5,0.0011]
[1772418280623,5.12726239,1950.4,1949.5,0.0011]
[1772418280624,4.10566413,1950.2,1949.6,0.0022]
[1772418280832,4.10566413,1950.1,1949.6,0.0022]
[1772418281029,2.8236786,1950.0,1949.6,0.0022]
[1772418282137,1.28211703,1949.9,1949.6,0.0022]
[1772418283359,2.8236786,1949.8,1949.5,0.0011]
[1772418284047,1.28224855,1949.7,1949.5,0.0011]
[1772418284259,4.10592715,1949.7,1949.5,0.0011]
[1772418285345,1.28221657,1949.8,1949.5,0.0011]
[1772418285745,4.10589517,1949.8,1949.5,0.0011]
[1772418286251,1.28221657,1949.8,1949.5,0.0011]
[1772418287654,4.10584108,1949.9,1949.5,0.0011]
[1772418287871,2.54812203,1949.8,1949.5,0.0011]
[1772418288367,1.28224855,1949.7,1949.5,0.0011]
[1772418288870,1.28224855,1949.7,1948.5,0.065536]
[1772418288871,2.54812203,1949.0,1948.5,0.065536]
[1772418289158,2.54812203,1949.0,1948.6,0.00153886]
[1772418289159,1.93382308,1949.0,1948.6,0.00153886]
[1772418289344,2.54812203,1949.3,1948.3,2.54931799]
[1772418289549,1.379,1949.2,1948.3,2.54931799]
[1772418289865,3.53612203,1949.3,1948.3,2.54931799]
[1772418290033,3.69412203,1949.3,1948.4,2.55085685]
[1772418290360,2.66038009,1949.5,1948.6,2.54931799]
[1772418290674,2.66038009,1949.5,1948.5,0.00153886]
[1772418290675,2.54812203,1949.4,1948.5,0.00153886]
[1772418292564,2.54812203,1949.2,1948.5,0.00263886]
[1772418293363,3.92612203,1949.1,1948.5,0.00263886]
[1772418293658,2.54812203,1949.0,1948.5,0.00263886]
[1772418293865,1.378,1949.2,1948.5,2.55195685]
[1772418294074,1.28251167,1949.3,1948.5,2.55195685]
[1772418295042,1.28251167,1949.3,1948.6,1.28297239]
[1772418295241,2.54812203,1949.2,1948.5,1.28567654]
[1772418295766,2.54812203,1949.2,1948.5,0.00263886]
[1772418296438,2.54812203,1949.2,1948.5,3.83498705]
[1772418296837,1.28251167,1949.3,1948.5,1.28566906]
[1772418297036,1.28251167,1949.3,1948.7,1.28290655]
[1772418297540,1.28251167,1949.3,1948.8,0.00153886]
[1772418298039,3.8306337,1949.3,1948.8,0.00153886]
[1772418300366,2.54812203,1949.0,1948.5,0.0011]
[1772418300775,2.54812203,1948.9,1948.4,0.0011]
[1772418301475,1.28264327,1949.1,1948.4,2.55041799]
[1772418302043,5.13017088,1949.3,1948.4,2.55041799]
[1772418302580,2.66451167,1949.4,1948.4,2.55041799]
[1772418302581,5.12979966,1949.4,1948.4,2.55041799]
[1772418302778,2.69424541,1949.7,1948.6,2.54931799]
[1772418302942,0.001,1949.7,1948.8,2.54931799]
[1772418303144,1.28326089,1949.7,1949.0,2.54931799]
[1772418303749,0.001,1949.7,1949.1,3.83196126]
[1772418304270,0.001,1949.7,1949.2,2.54931799]
[1772418305962,0.001,1949.7,1949.3,3.83182966]
[1772418308979,0.00153886,1950.0,1949.4,2.54931799]
[1772418309170,0.00153886,1950.0,1949.4,3.87631799]
[1772418311392,0.00153886,1950.0,1949.5,3.83169808]
[1772418312395,0.00153886,1950.0,1949.6,2.54931799]
[1772418313686,0.00153886,1950.0,1949.7,1.28224855]
[1772418315134,0.00153886,1950.0,1949.7,3.90761017]
[1772418315392,2.49589939,1950.7,1949.9,2.62536162]
[1772418315580,3.77760942,1950.6,1950.0,2.61304331]
[1772418315887,3.77760942,1950.6,1950.0,1.331]
[1772418316081,2.49589939,1950.5,1950.0,1.331]
[1772418316477,2.49589939,1950.5,1950.0,2.61304165]
[1772418317665,3.77767009,1950.5,1950.0,2.61304165]
[1772418318391,3.83628953,1950.7,1950.0,2.61304165]
[1772418318792,3.83628953,1950.7,1950.0,5.06111878]
[1772418319107,3.83628953,1950.7,1950.1,2.44807713]
[1772418319394,1.28253301,1950.8,1950.1,2.44807713]
[1772418319797,1.28253301,1950.8,1950.2,1.2819198]
[1772418319998,1.28253301,1950.8,1950.1,3.73000961]
[1772418319999,3.837182,1950.8,1950.1,3.73000961]
[1772418320875,0.001,1950.8,1950.2,2.44807713]
[1772418322168,0.001,1950.9,1950.4,2.44807713]
[1772418322676,0.001,1950.9,1950.4,3.78307713]
[1772418322883,0.001,1950.9,1950.5,2.44807713]
[1772418323393,0.001,1950.9,1950.4,1.335]
[1772418323568,2.55564899,1950.9,1950.4,1.335]
[1772418323769,0.001,1950.9,1950.4,1.335]
[1772418323981,0.001,1950.9,1950.4,3.78307713]
[1772418324181,0.001,1950.9,1950.5,1.28172263]
[1772418324380,0.001,1950.9,1950.4,5.06481221]
[1772418325288,0.00153886,1951.0,1950.4,5.06481221]
[1772418325910,0.00153886,1951.0,1950.1,1.2819497]
[1772418325911,2.55618785,1951.0,1950.1,1.2819497]
[1772418326274,3.83610882,1950.9,1950.1,1.2819497]
[1772418326510,3.83610882,1950.9,1950.1,3.73002683]
[1772418327716,1.28145983,1950.9,1950.2,2.44807713]
[1772418328602,0.001,1950.8,1950.3,1.28185407]
[1772418329303,0.001,1950.8,1950.3,3.7299312]
[1772418330319,0.00153886,1951.0,1950.5,2.44807713]
[1772418330526,2.55618785,1951.0,1950.4,2.61974947]
[1772418330928,2.55618785,1951.0,1950.4,1.338]
[1772418331628,2.55618785,1951.0,1950.4,2.61978181]
[1772418331803,2.55464899,1950.8,1950.1,0.0011]
[1772418332827,2.55464899,1950.5,1950.1,0.0011]
[1772418334316,1.28159122,1950.7,1949.8,0.0011]
[1772418334317,2.55464899,1950.2,1949.8,0.0011]
[1772418334514,2.55464899,1949.9,1949.0,3.73228997]
[1772418334715,2.55464899,1949.9,1949.0,2.44961599]
[1772418334949,2.55464899,1949.6,1949.0,0.00153886]
[1772418335651,2.55464899,1949.6,1949.0,1.2842372]
[1772418336149,2.55464899,1949.6,1949.0,1.28424299]
[1772418336353,2.55464899,1949.6,1949.0,0.00153886]
[1772418336662,2.55464899,1949.6,1949.0,1.28424204]
[1772418336947,1.28238009,1949.5,1949.0,0.00153886]
[1772418337148,1.28238009,1949.5,1948.6,5.13183039]
[1772418337149,2.55464899,1949.2,1948.4,3.78517713]
[1772418337327,2.55464899,1949.2,1948.4,1.3371]
[1772418337725,2.55464899,1949.2,1948.4,2.620191]
[1772418337933,2.55464899,1949.2,1948.4,1.3371]
[1772418338127,2.55464899,1949.2,1948.5,1.28412203]
[1772418338331,2.55464899,1949.2,1948.5,0.0011]
[1772418338531,2.55464899,1949.2,1948.5,1.28413211]
[1772418339133,1.28264327,1949.1,1948.5,0.0011]
[1772418339433,3.83729226,1949.1,1948.5,0.0011]
[1772418340644,3.83729226,1949.1,1948.6,0.0011]
[1772418341270,1.28235306,1949.6,1948.7,2.44807713]
[1772418341557,2.62231339,1949.8,1948.8,2.44807713]
[1772418341558,6.45919377,1949.8,1948.8,2.44807713]
[1772418342463,6.45919377,1949.8,1948.8,3.86]
[1772418342660,2.55464899,1949.7,1948.9,2.44807713]
[1772418344564,2.55464899,1949.5,1948.7,6.47785593]
[1772418344724,2.55464899,1949.4,1948.7,1.28289935]
[1772418344930,2.55464899,1949.4,1948.6,7.58105626]
[1772418344931,2.55464899,1949.4,1948.6,3.73209883]
[1772418345861,2.55464899,1949.4,1948.6,1.2840217]
[1772418346657,2.55464899,1949.1,1948.6,0.0011]
[1772418346857,1.28251167,1949.3,1948.6,0.0011]
[1772418347058,1.28251167,1949.3,1948.6,2.43581081]
[1772418347257,2.34325874,1949.2,1948.6,0.0011]
[1772418348652,1.28264327,1949.1,1948.6,0.0011]
[1772418350745,2.34325874,1949.1,1948.6,0.0011]
[1772418352766,2.34325874,1948.9,1948.6,0.0011]
[1772418353361,2.34325874,1948.9,1948.7,0.0011]
[1772418353558,4.44718996,1948.9,1948.5,0.0011]
[1772418353758,2.34325874,1948.8,1948.3,0.0011]
[1772418354852,1.28290655,1948.7,1948.3,0.0011]
[1772418355564,3.62616529,1948.7,1948.3,0.0011]
[1772418357674,2.34325874,1948.6,1948.3,0.0011]
[1772418359172,3.62627734,1948.6,1948.3,0.0011]
[1772418359377,3.62588643,1949.2,1948.3,2.43581081]
[1772418359678,5.01588643,1949.2,1948.3,2.43581081]
[1772418361085,2.34325874,1948.9,1948.3,2.43581081]
[1772418361390,1.28284072,1948.8,1948.3,0.0011]
[1772418361967,3.62607464,1948.9,1948.3,0.0011]
[1772418362153,3.73325874,1949.2,1948.4,2.43471081]
[1772418362354,5.01588507,1949.2,1948.4,2.43471081]
[1772418362592,2.67262633,1949.2,1948.4,2.43471081]
[1772418363090,2.34325874,1949.1,1948.4,2.43471081]
[1772418363295,1.28270908,1949.0,1948.5,1.28303823]
[1772418363592,3.62593493,1949.1,1948.5,1.28303823]
[1772418364479,1.28260128,1949.2,1948.6,2.43471081]
[1772418365302,1.28270908,1949.0,1948.4,1.28305442]
[1772418365606,1.28270908,1949.0,1948.4,1.28415442]
[1772418365974,3.62594714,1949.1,1948.4,3.71886523]
[1772418366174,1.28262992,1949.2,1948.5,2.43471081]
[1772418366905,5.01881144,1949.3,1948.5,2.43471081]
[1772418367205,2.34325874,1949.2,1948.5,2.43471081]
[1772418369714,2.6755527,1949.3,1948.7,2.43471081]
[1772418369715,0.001,1949.3,1948.7,2.43471081]
[1772418369928,2.67427612,1949.7,1948.9,2.43471081]
[1772418370334,1.28227612,1949.7,1948.9,2.43471081]
[1772418370834,3.62553486,1949.7,1948.9,2.43471081]
[1772418370988,1.28227612,1949.7,1948.9,2.43471081]
[1772418371189,3.62553486,1949.7,1948.9,2.43471081]
[1772418371686,3.62553486,1949.7,1949.0,3.71741989]
[1772418372113,1.28223148,1949.8,1949.1,2.43471081]
[1772418374525,3.46007607,1949.8,1949.2,3.5702158]
[1772418377098,0.001,1949.7,1949.2,3.5702158]
[1772418377299,0.001,1949.7,1949.3,2.35033333]
[1772418377601,0.001,1949.7,1949.2,1.2825752]
[1772418379119,0.001,1949.7,1949.3,2.35033333]
[1772418381202,0.001,1949.7,1949.4,1.28244588]
[1772418382392,0.00153886,1950.0,1949.5,2.35033333]
[1772418383295,0.00153886,1950.0,1949.6,1.28231432]
[1772418383501,2.36127845,1950.0,1949.3,3.63284185]
[1772418384207,2.36127845,1950.0,1949.3,2.35033333]
[1772418384738,2.36127845,1950.0,1949.3,3.63283775]
[1772418385732,1.28211703,1949.9,1949.3,3.63283775]
[1772418385932,1.28211703,1949.9,1949.3,2.35033333]
[1772418386234,1.28211703,1949.9,1949.2,2.61853741]
[1772418386235,2.35973959,1949.8,1949.2,2.61853741]
[1772418386936,0.00153886,1950.0,1949.3,2.35033333]
[1772418387134,2.35973959,1950.4,1949.5,2.35033333]
[1772418387335,2.35973959,1950.4,1949.7,2.35033333]
[1772418387705,3.64155731,1950.4,1949.8,3.63251611]
[1772418388034,2.35973959,1950.4,1949.8,3.63251611]
[1772418388207,3.64144377,1950.6,1949.9,2.35033333]
[1772418388936,0.001,1950.3,1949.9,2.35033333]
[1772418389634,2.35973959,1950.1,1949.6,1.341]
[1772418390436,2.35973959,1950.1,1949.6,2.62331005]
[1772418390618,2.35973959,1950.1,1949.6,1.341]
[1772418390813,0.001,1950.3,1949.7,2.35033333]
[1772418391709,0.001,1950.3,1949.8,3.63251611]
[1772418392943,24.78204312,1950.0,1949.8,2.35033333]
[1772418393146,24.78204312,1950.0,1949.6,1.341]
[1772418393314,27.14178271,1950.0,1949.3,6.48658607]
[1772418393710,1.28211703,1949.9,1949.3,6.48658607]
[1772418394138,28.42387936,1950.0,1949.3,6.48658607]
[1772418394747,28.42387936,1950.0,1949.3,8.8369194]
[1772418397037,24.78204312,1950.0,1949.4,2.35033333]
[1772418397331,26.06409543,1950.0,1949.4,2.35033333]
[1772418398744,26.06409543,1950.0,1949.4,3.63276032]
[1772418399057,2.35973959,1949.9,1949.3,6.48660412]
[1772418399827,28.42383502,1950.0,1949.3,8.83693745]
[1772418400836,29.84483502,1950.0,1949.3,4.97693745]
[1772418401252,2.35973959,1949.9,1949.3,4.97693745]
[1772418401819,2.35973959,1949.9,1949.4,0.0011]
[1772418403125,29.84483962,1950.0,1949.4,2.35143333]
[1772418403330,27.48510003,1950.0,1949.4,2.35143333]
[1772418403558,2.35973959,1949.9,1949.4,0.0011]
[1772418406851,3.64192237,1949.8,1949.4,0.0011]
[1772418407056,2.18941899,1949.7,1949.4,0.0011]
[1772418407257,1.28218278,1949.8,1949.4,0.0011]
[1772418407424,2.18941899,1949.7,1949.4,0.0011]
[1772418408359,2.18941899,1949.7,1949.2,0.0011]
[1772418408360,2.18941899,1949.6,1949.2,0.0011]
[1772418408929,2.18941899,1949.4,1949.2,0.0011]
[1772418409234,3.63941899,1949.4,1949.2,0.0011]
[1772418410346,2.18941899,1949.3,1949.0,0.00263886]
[1772418410964,1.28257746,1949.2,1949.0,0.00263886]
[1772418412331,3.47198228,1949.3,1949.0,0.00263886]
[1772418413360,2.18941899,1949.6,1949.0,2.08867794]
[1772418413659,27.7287714,1950.0,1949.0,2.08867794]
[1772418413660,3.47169248,1949.7,1949.0,2.08867794]
[1772418413869,4.92969248,1949.7,1949.0,2.08867794]
[1772418414740,4.92969248,1949.7,1949.3,0.0011]
[1772418415065,2.18941899,1949.6,1949.3,0.0011]
[1772418415354,2.18941899,1949.6,1949.2,0.0011]
[1772418416049,1.28238009,1949.5,1949.2,0.0011]
[1772418418036,2.18941899,1949.5,1949.2,0.0011]
[1772418420933,1.28244588,1949.4,1949.2,0.0011]
[1772418421337,1.28244588,1949.4,1949.0,0.00263886]
[1772418421338,2.18941899,1949.3,1949.0,0.00263886]
[1772418421571,2.18941899,1949.3,1948.4,0.0011]
[1772418421775,2.18941899,1949.3,1948.4,1.28420063]
[1772418421980,2.18941899,1949.3,1948.5,2.08603908]
[1772418423566,4.94399645,1949.2,1948.6,3.36901147]
[1772418425686,1.473,1949.7,1948.7,2.08603908]
[1772418425886,3.47264808,1949.8,1948.7,2.08603908]
[1772418426069,1.474,1949.8,1948.9,2.08603908]
[1772418426254,0.001,1949.8,1949.1,2.08603908]
[1772418426458,2.19041899,1949.8,1949.1,2.08603908]
[1772418426660,1.28224855,1949.7,1948.9,2.08603908]
[1772418427385,2.18941899,1949.6,1948.9,2.08603908]
[1772418427557,0.001,1949.2,1948.9,2.08603908]
[1772418427754,0.001,1949.2,1948.7,3.36889717]
[1772418428189,0.001,1949.2,1948.7,2.08603908]
[1772418429280,0.001,1949.2,1948.6,2.62894132]
[1772418429281,2.19041899,1949.2,1948.6,1.346]
[1772418429958,3.47206226,1949.1,1948.6,1.346]
[1772418430694,2.18941899,1949.0,1948.5,0.0011]
[1772418432164,1.28277489,1948.9,1948.5,0.0011]
[1772418432363,3.47218075,1949.0,1948.5,0.0011]
[1772418432994,1.28358232,1949.2,1948.5,1.92600414]
[1772418434474,1.28358232,1949.2,1948.6,3.20787653]
[1772418434990,0.001,1949.2,1948.8,1.92490414]
[1772418437692,2.09644968,1949.2,1948.7,1.346]
[1772418438199,2.09644968,1949.2,1948.7,2.62890118]
[1772418438388,2.09644968,1949.2,1948.7,1.346]
[1772418438982,2.09644968,1949.2,1948.7,2.62890367]
[1772418439307,2.75738009,1949.6,1948.8,2.0895101]
[1772418439308,1.28235069,1949.6,1948.8,2.0895101]
[1772418439470,3.37780037,1949.6,1948.8,2.0895101]
[1772418439871,3.37780037,1949.6,1948.9,3.37228499]
[1772418440093,0.001,1949.2,1948.9,3.37228499]
[1772418440567,3.37780037,1949.6,1949.0,2.0895101]
[1772418440992,2.09544968,1949.5,1948.8,7.2323395]
[1772418441371,1.28235069,1949.6,1948.9,2.0895101]
[1772418442194,1.28235069,1949.6,1949.0,1.28270908]
[1772418442401,1.28235069,1949.6,1949.1,2.0895101]
[1772418442999,3.37773814,1949.7,1949.1,2.0895101]
[1772418444670,5.12979938,1949.8,1949.2,1.28257746]
[1772418444871,0.001,1949.8,1949.2,3.37208756]
[1772418445180,0.001,1949.8,1949.3,2.0895101]
[1772418447905,0.001,1949.8,1949.4,2.0895101]
[1772418451306,0.001,1949.8,1949.4,3.37194913]
[1772418451511,0.001,1949.8,1949.5,2.0895101]
[1772418451889,0.001,1949.7,1949.5,2.0895101]
[1772418452506,0.001,1949.7,1949.3,3.37197934]
[1772418453200,0.001,1949.7,1949.4,2.0895101]
[1772418454109,0.001,1949.7,1949.4,3.37191757]
[1772418454702,0.001,1949.7,1949.4,4.72795336]
[1772418454902,0.001,1949.7,1949.5,2.0895101]
[1772418455104,0.001,1949.7,1949.4,3.4455101]
[1772418455589,0.001,1949.7,1949.5,2.0895101]
[1772418456203,0.001,1949.7,1949.6,2.0895101]
[1772418460611,0.001,1949.7,1949.4,4.72789132]
[1772418461215,0.001,1949.7,1949.5,2.0895101]
[1772418461418,24.78358198,1950.0,1949.6,1.28231432]
[1772418461590,24.78358198,1950.0,1949.8,2.0895101]
[1772418462192,3.37734702,1950.3,1949.8,2.0895101]
[1772418462392,2.09544968,1950.2,1949.7,3.4535101]
[1772418462593,3.37734702,1950.3,1949.8,2.0895101]
[1772418463600,2.09544968,1950.2,1949.8,2.0895101]
[1772418463805,2.09544968,1950.4,1949.8,2.0895101]
[1772418464009,3.37723973,1950.4,1949.9,2.51064531]
[1772418464216,2.09544968,1950.4,1949.9,2.51064531]
[1772418464418,3.37724068,1950.4,1949.9,2.51064531]
[1772418464801,0.001,1950.2,1949.9,2.51064531]
[1772418465399,2.09544968,1950.7,1950.2,2.0895101]
[1772418465599,3.37705011,1950.7,1950.2,3.79252382]
[1772418465797,3.37705011,1950.7,1950.2,2.0895101]
[1772418465998,2.09544968,1950.6,1950.0,5.15869482]
[1772418466193,2.09544968,1950.6,1950.3,1.367]
[1772418467830,3.37716692,1950.6,1950.3,1.367]
[1772418469229,2.64428198,1950.5,1949.8,3.86]
[1772418469430,2.22314677,1950.2,1949.7,1.367]
[1772418470117,1.28198553,1950.1,1949.7,1.367]
[1772418470429,3.50504101,1950.3,1949.7,5.39064014]
[1772418470612,3.50501922,1950.3,1949.8,2.32025703]
[1772418473842,2.22314677,1950.2,1949.7,1.367]
[1772418474524,2.22314677,1950.2,1949.7,2.64924417]
[1772418474723,2.22314677,1950.2,1949.7,4.9695012]
[1772418475730,3.50511845,1950.2,1949.7,4.9695012]
[1772418476135,3.50508573,1950.2,1949.7,4.9695012]
[1772418476637,3.50508573,1950.2,1949.7,3.68725703]
[1772418477140,3.50508573,1950.2,1949.8,0.0011]
[1772418477354,2.22314677,1950.0,1949.3,0.0011]
[1772418477645,2.22314677,1950.0,1949.7,0.0011]
[1772418477811,3.50508573,1950.2,1949.7,0.0011]
[1772418479548,3.50508573,1950.2,1949.7,2.32135703]
[1772418480138,1.28187362,1950.3,1949.7,1.28332982]
[1772418480447,1.28187362,1950.3,1949.8,2.32025703]
[1772418480619,2.22314677,1950.2,1949.7,1.3731]